[Event "Chpt Reg Jeunes Occitanie 2026 - Espalion"]
[Site "Espalion, France"]
[Round "2.12"]
[ECO "?"]
[Annotator "?"]
[TimeControl "1h30 + 30sec/cp"]

1. e4 {[%clk 1:30:00][%emt 0:00:58]} 1... c6 {[%clk 1:30:59][%emt 0:00:03]} 2.
d4 {[%clk 1:30:20][%emt 0:00:09]} 2... d5 {[%clk 1:31:26][%emt 0:00:04]} 3. e5
{[%clk 1:30:43][%emt 0:00:06]} 3... c5 {[%clk 1:31:53][%emt 0:00:04]} 4. dxc5
{[%clk 1:31:06][%emt 0:00:06]} 4... Nc6 {[%clk 1:32:20][%emt 0:00:04]} 5. a3
{[%clk 1:31:27][%emt 0:00:08]} 5... a6 {[%clk 1:32:46][%emt 0:00:05]} 6. c4
{[%clk 1:25:44][%emt 0:06:12]} 6... dxc4 {[%clk 1:31:30][%emt 0:01:47]} 7.
Qxd8+ {[%clk 1:25:38][%emt 0:00:34]} 7... Kxd8 {[%clk 1:31:57][%emt 0:00:05]}
8. Nf3 {[%clk 1:19:41][%emt 0:06:26]} 8... Bg4 {[%clk 1:32:01][%emt 0:00:26]}
9. Nbd2 {[%clk 1:19:49][%emt 0:00:21]} 9... e6 {[%clk 1:32:10][%emt 0:00:23]}
10. Bxc4 {[%clk 1:19:55][%emt 0:00:23]} 10... Bxc5 {[%clk 1:32:31][%emt
0:00:10]} 11. O-O {[%clk 1:17:10][%emt 0:03:15]} 11... Nge7 {[%clk
1:31:07][%emt 0:01:54]} 12. b4 {[%clk 1:14:50][%emt 0:02:49]} 12... Bb6 {[%clk
1:28:28][%emt 0:03:09]} 13. Bb2 {[%clk 1:14:58][%emt 0:00:22]} 13... Ng6
{[%clk 1:28:49][%emt 0:00:10]} 14. h3 {[%clk 1:14:27][%emt 0:01:00]} 14...
Bxf3 {[%clk 1:29:08][%emt 0:00:12]} 15. Nxf3 {[%clk 1:14:52][%emt 0:00:04]}
15... Ke7 {[%clk 1:28:09][%emt 0:01:30]} 16. Rac1 {[%clk 1:11:34][%emt
0:03:48]} 16... Rhd8 {[%clk 1:24:24][%emt 0:04:16]} 17. b5 {[%clk
1:08:16][%emt 0:03:46]} 17... Na5 {[%clk 1:24:37][%emt 0:00:18]} 18. bxa6
{[%clk 1:06:55][%emt 0:01:51]} 18... Nxc4 {[%clk 1:24:47][%emt 0:00:20]} 19.
Rxc4 {[%clk 1:07:17][%emt 0:00:07]} 19... Rxa6 {[%clk 1:25:14][%emt 0:00:04]}
20. Bc3 {[%clk 1:03:19][%emt 0:04:28]} 20... Ba5 {[%clk 1:22:22][%emt 0:03:22]}
 21. Rb1 {[%clk 1:01:43][%emt 0:02:05]} 21... Rd7 {[%clk 1:21:53][%emt
0:01:00]} 22. Bd4 {[%clk 1:00:42][%emt 0:01:30]} 22... f6 {[%clk 1:17:19][%emt
0:05:04]} 23. Rc8 {[%clk 0:56:19][%emt 0:04:53]} 23... Rc6 {[%clk
1:10:35][%emt 0:07:15]} 24. Rb8 {[%clk 0:54:41][%emt 0:02:07]} 24... fxe5
{[%clk 1:07:25][%emt 0:03:40]} 25. Bxe5 {[%clk 0:54:00][%emt 0:01:11]} 25...
Bc7 {[%clk 1:07:49][%emt 0:00:07]} 26. Bxc7 {[%clk 0:54:25][%emt 0:00:06]}
26... Rcxc7 {[%clk 1:08:13][%emt 0:00:06]} 27. h4 {[%clk 0:49:45][%emt
0:05:09]} 27... Rc3 {[%clk 1:06:08][%emt 0:02:35]} 28. h5 {[%clk 0:48:18][%emt
0:01:56]} 28... Nf4 {[%clk 1:06:07][%emt 0:00:32]} 29. h6 {[%clk 0:48:05][%emt
0:00:42]} 29... gxh6 {[%clk 1:06:23][%emt 0:00:15]} 30. Rh8 {[%clk
0:42:14][%emt 0:06:21]} 30... Rxa3 {[%clk 1:04:22][%emt 0:02:31]} 31. Rxh7+
{[%clk 0:42:32][%emt 0:00:10]} 31... Kd8 {[%clk 1:04:06][%emt 0:00:47]} 32.
Rxh6 {[%clk 0:42:47][%emt 0:00:16]} 32... Rg7 {[%clk 0:55:27][%emt 0:09:09]}
33. Rd1+ {[%clk 0:38:17][%emt 0:05:00]} 33... Ke7 {[%clk 0:53:41][%emt
0:02:16]} 34. Nh4 {[%clk 0:35:02][%emt 0:03:44]} 34... b5 {[%clk 0:51:25][%emt
0:02:47]} 35. g3 {[%clk 0:33:56][%emt 0:01:34]} 35... b4 {[%clk 0:49:35][%emt
0:02:22]} 36. Kh2 {[%clk 0:32:45][%emt 0:01:39]} 36... Ne2 {[%clk
0:48:34][%emt 0:01:33]} 37. Re1 {[%clk 0:31:07][%emt 0:02:06]} 37... Nd4
{[%clk 0:47:55][%emt 0:01:10]} 38. Re4 {[%clk 0:31:00][%emt 0:00:36]} 38...
Rd3 {[%clk 0:47:11][%emt 0:01:15]} 39. Ng6+ {[%clk 0:30:27][%emt 0:01:03]}
39... Rxg6 {[%clk 0:45:26][%emt 0:02:16]} 40. Rxg6 {[%clk 0:30:39][%emt
0:00:18]} 40... b3 {[%clk 0:45:52][%emt 0:00:04]} 41. Rg7+ {[%clk
0:29:51][%emt 0:01:18]} 41... Kd6 {[%clk 0:45:50][%emt 0:00:32]} 42. Rb7
{[%clk 0:30:04][%emt 0:00:16]} 42... Rd2 {[%clk 0:37:28][%emt 0:08:50]} 43.
Rxd4+ {[%clk 0:30:21][%emt 0:00:17]} 43... Rxd4 {[%clk 0:37:51][%emt 0:00:07]}
44. Rxb3 {[%clk 0:30:47][%emt 0:00:03]} 44... Ke5 {[%clk 0:38:15][%emt
0:00:05]} 45. Rf3 {[%clk 0:31:11][%emt 0:00:07]} 45... Rg4 {[%clk
0:38:27][%emt 0:00:18]} 46. Kh3 {[%clk 0:31:32][%emt 0:00:08]} 46... Rg6
{[%clk 0:38:52][%emt 0:00:05]} 47. g4 {[%clk 0:31:59][%emt 0:00:05]} 47... Ke4
{[%clk 0:39:14][%emt 0:00:08]} 48. Rf8 {[%clk 0:32:21][%emt 0:00:07]} 48... e5
{[%clk 0:39:04][%emt 0:00:40]} 49. Kh4 {[%clk 0:32:41][%emt 0:00:09]} 49...
Rh6+ {[%clk 0:38:16][%emt 0:01:19]} 50. Kg5 {[%clk 0:33:04][%emt 0:00:07]}
50... Rh3 {[%clk 0:38:42][%emt 0:00:04]} 51. Kg6 {[%clk 0:32:52][%emt 0:00:40]}
 51... Rf3 {[%clk 0:38:54][%emt 0:00:20]} 52. Rxf3 {[%clk 0:33:15][%emt
0:00:07]} 52... Kxf3 {[%clk 0:39:20][%emt 0:00:03]} 53. Kf5 {[%clk
0:33:39][%emt 0:00:06]} 53... e4 {[%clk 0:39:22][%emt 0:00:28]} 54. g5 {[%clk
0:34:05][%emt 0:00:05]} 54... e3 {[%clk 0:39:50][%emt 0:00:03]} 55. fxe3
{[%clk 0:34:29][%emt 0:00:05]} 55... Kxe3 {[%clk 0:40:16][%emt 0:00:04]} 56.
g6 {[%clk 0:34:54][%emt 0:00:05]} 56... Kd4 {[%clk 0:40:42][%emt 0:00:03]} 57.
g7 {[%clk 0:35:18][%emt 0:00:07]} 57... Kd5 {[%clk 0:41:10][%emt 0:00:02]} 58.
g8=Q+ {[%clk 0:35:39][%emt 0:00:08]} 58... Kd4 {[%clk 0:41:38][%emt 0:00:02]}
59. Qe6 {[%clk 0:35:57][%emt 0:00:12]} 59... Kc5 {[%clk 0:42:03][%emt 0:00:06]}
 60. Ke4 {[%clk 0:36:19][%emt 0:00:08]} 60... Kb5 {[%clk 0:42:28][%emt
0:00:04]} 61. Qd6 {[%clk 0:36:42][%emt 0:00:08]} 61... Ka5 {[%clk
0:42:55][%emt 0:00:03]} 62. Qb8 {[%clk 0:37:01][%emt 0:00:10]} 62... Ka6
{[%clk 0:43:22][%emt 0:00:04]} 63. Kd5 {[%clk 0:37:26][%emt 0:00:04]} 63...
Ka5 {[%clk 0:43:48][%emt 0:00:05]} 64. Kc5 {[%clk 0:37:52][%emt 0:00:04]}
64... Ka6 {[%clk 0:44:14][%emt 0:00:04]} 65. Qa8# {[%clk 0:38:17][%emt
0:00:04]} 1-0

[White "FLOURY, Noe"]
[Black "MARTINEZ, Julien"]
[WhiteElo "1650"]
[BlackElo "1920"]
[Result "0-1"]
[Date "2026.03.04"]

[Event "Chpt Reg Jeunes Occitanie 2026 - Espalion"]
[Site "Espalion, France"]
[Round "2.13"]
[ECO "?"]
[Annotator "?"]
[TimeControl "1h30 + 30sec/cp"]

1. d4 {[%clk 1:30:55][%emt 0:00:03]} 1... d5 {[%clk 1:30:59][%emt 0:00:03]} 2.
Nc3 {[%clk 1:31:18][%emt 0:00:07]} 2... Nf6 {[%clk 1:31:18][%emt 0:00:10]} 3.
Bf4 {[%clk 1:31:42][%emt 0:00:06]} 3... c6 {[%clk 1:31:45][%emt 0:00:04]} 4.
e3 {[%clk 1:32:03][%emt 0:00:08]} 4... Bf5 {[%clk 1:32:06][%emt 0:00:08]} 5.
f3 {[%clk 1:32:22][%emt 0:00:11]} 5... e6 {[%clk 1:32:25][%emt 0:00:12]} 6. g4
{[%clk 1:32:43][%emt 0:00:08]} 6... Bg6 {[%clk 1:32:45][%emt 0:00:10]} 7. h4
{[%clk 1:33:06][%emt 0:00:07]} 7... h5 {[%clk 1:32:26][%emt 0:00:50]} 8. g5
{[%clk 1:33:23][%emt 0:00:13]} 8... Nfd7 {[%clk 1:31:32][%emt 0:01:24]} 9. Bd3
{[%clk 1:33:25][%emt 0:00:27]} 9... Bxd3 {[%clk 1:31:17][%emt 0:00:45]} 10.
Qxd3 {[%clk 1:33:37][%emt 0:00:18]} 10... Na6 {[%clk 1:30:49][%emt 0:00:58]}
11. a3 {[%clk 1:32:59][%emt 0:01:09]} 11... Qb6 {[%clk 1:30:04][%emt 0:01:12]}
12. Rb1 {[%clk 1:29:48][%emt 0:03:44]} 12... c5 {[%clk 1:25:27][%emt 0:05:06]}
13. Nge2 {[%clk 1:28:21][%emt 0:01:57]} 13... Bd6 {[%clk 1:20:15][%emt
0:05:43]} 14. Kf2 {[%clk 1:25:26][%emt 0:03:25]} 14... cxd4 {[%clk
1:18:06][%emt 0:02:38]} 15. exd4 {[%clk 1:25:02][%emt 0:00:54]} 15... Bxf4
{[%clk 1:17:51][%emt 0:00:46]} 16. Nxf4 {[%clk 1:25:22][%emt 0:00:09]} 16...
Qd6 {[%clk 1:17:54][%emt 0:00:27]} 17. Nfe2 {[%clk 1:20:08][%emt 0:05:44]}
17... g6 {[%clk 1:17:18][%emt 0:01:06]} 18. Ng3 {[%clk 1:16:35][%emt 0:04:03]}
18... Nc7 {[%clk 1:15:33][%emt 0:02:15]} 19. a4 {[%clk 1:12:54][%emt 0:04:11]}
19... Rc8 {[%clk 1:10:12][%emt 0:05:51]} 20. Rbc1 {[%clk 1:03:04][%emt
0:10:21]} 20... Kf8 {[%clk 1:07:19][%emt 0:03:22]} 21. Rhe1 {[%clk
0:53:45][%emt 0:09:50]} 21... Qf4 {[%clk 1:04:58][%emt 0:02:40]} 22. Rh1
{[%clk 0:52:18][%emt 0:02:06]} 22... Kg7 {[%clk 1:04:10][%emt 0:01:15]} 23.
Qe3 {[%clk 0:49:24][%emt 0:03:29]} 23... Qd6 {[%clk 1:01:06][%emt 0:03:33]}
24. Rhe1 {[%clk 0:45:21][%emt 0:04:33]} 24... Na6 {[%clk 0:59:12][%emt
0:02:20]} 25. Nb5 {[%clk 0:36:05][%emt 0:09:50]} 25... Qb6 {[%clk
0:58:08][%emt 0:01:32]} 26. c3 {[%clk 0:29:13][%emt 0:07:25]} 26... Nc7 {[%clk
0:57:33][%emt 0:01:04]} 27. Nxc7 {[%clk 0:27:33][%emt 0:02:11]} 27... Rxc7
{[%clk 0:57:46][%emt 0:00:17]} 28. Qd2 {[%clk 0:27:34][%emt 0:00:29]} 28...
Qb3 {[%clk 0:57:28][%emt 0:00:47]} 29. Qc2 {[%clk 0:26:42][%emt 0:01:23]}
29... Qb6 {[%clk 0:56:31][%emt 0:01:26]} 30. Kg2 {[%clk 0:24:26][%emt 0:02:45]}
 30... Rhc8 {[%clk 0:56:11][%emt 0:00:50]} 31. Ne2 {[%clk 0:20:53][%emt
0:04:04]} 31... Nb8 {[%clk 0:54:46][%emt 0:01:55]} 32. b3 {[%clk 0:17:23][%emt
0:04:00]} 32... Nc6 {[%clk 0:54:58][%emt 0:00:17]} 33. Qb2 {[%clk
0:16:21][%emt 0:01:32]} 33... Ne7 {[%clk 0:55:04][%emt 0:00:24]} 34. Ng3
{[%clk 0:14:06][%emt 0:02:45]} 34... Qd6 {[%clk 0:55:10][%emt 0:00:24]} 35.
Qd2 {[%clk 0:13:20][%emt 0:01:17]} 35... Qa3 {[%clk 0:54:58][%emt 0:00:41]}
36. Qc2 {[%clk 0:13:05][%emt 0:00:45]} 36... Qb4 {[%clk 0:54:00][%emt 0:01:29]}
 37. Qd2 {[%clk 0:12:09][%emt 0:01:26]} 37... Rxc3 {[%clk 0:53:52][%emt
0:00:38]} 38. Ne2 {[%clk 0:12:02][%emt 0:00:36]} 38... Rxb3 {[%clk
0:54:09][%emt 0:00:14]} 39. Rxc8 {[%clk 0:11:30][%emt 0:01:02]} 39... Qxd2
{[%clk 0:54:30][%emt 0:00:08]} 0-1

[White "VILLEMIN CHARTIER, Elias"]
[Black "BAILLA, Akrem"]
[WhiteElo "1900"]
[BlackElo "1647"]
[Result "1-0"]
[Date "2026.03.04"]

[Event "Chpt Reg Jeunes Occitanie 2026 - Espalion"]
[Site "Espalion, France"]
[Round "2.14"]
[ECO "?"]
[Annotator "?"]
[TimeControl "1h30 + 30sec/cp"]

1. e4 {[%clk 1:30:58][%emt 0:00:01]} 1... c6 {[%clk 1:30:57][%emt 0:00:04]} 2.
d4 {[%clk 1:31:11][%emt 0:00:16]} 2... d5 {[%clk 1:31:23][%emt 0:00:05]} 3.
Nc3 {[%clk 1:31:38][%emt 0:00:04]} 3... a6 {[%clk 1:31:38][%emt 0:00:14]} 4.
h3 {[%clk 1:30:07][%emt 0:02:01]} 4... dxe4 {[%clk 1:31:04][%emt 0:01:04]} 5.
Nxe4 {[%clk 1:30:30][%emt 0:00:06]} 5... Bf5 {[%clk 1:31:16][%emt 0:00:18]} 6.
Ng3 {[%clk 1:30:41][%emt 0:00:19]} 6... Bg6 {[%clk 1:31:39][%emt 0:00:07]} 7.
h4 {[%clk 1:31:10][%emt 0:00:02]} 7... h6 {[%clk 1:32:03][%emt 0:00:06]} 8.
Nh3 {[%clk 1:31:36][%emt 0:00:04]} 8... Nd7 {[%clk 1:30:08][%emt 0:02:25]} 9.
Nf4 {[%clk 1:31:55][%emt 0:00:11]} 9... Bh7 {[%clk 1:30:28][%emt 0:00:09]} 10.
Bc4 {[%clk 1:32:20][%emt 0:00:05]} 10... Ngf6 {[%clk 1:30:00][%emt 0:00:59]}
11. c3 {[%clk 1:30:45][%emt 0:02:05]} 11... e6 {[%clk 1:29:29][%emt 0:01:01]}
12. Qe2 {[%clk 1:30:55][%emt 0:00:19]} 12... Qe7 {[%clk 1:24:58][%emt 0:05:01]}
 13. O-O {[%clk 1:28:22][%emt 0:03:03]} 13... Nd5 {[%clk 1:23:04][%emt
0:02:25]} 14. h5 {[%clk 1:26:44][%emt 0:02:07]} 14... N7b6 {[%clk
1:21:22][%emt 0:02:13]} 15. Bb3 {[%clk 1:26:08][%emt 0:01:05]} 15... Qh4
{[%clk 1:20:41][%emt 0:01:11]} 16. Nd3 {[%clk 1:17:52][%emt 0:08:47]} 16...
Bxd3 {[%clk 1:16:03][%emt 0:05:08]} 17. Qxd3 {[%clk 1:17:51][%emt 0:00:31]}
17... Bd6 {[%clk 1:16:15][%emt 0:00:18]} 18. c4 {[%clk 1:12:52][%emt 0:05:29]}
18... Nb4 {[%clk 1:14:58][%emt 0:01:47]} 19. Qf3 {[%clk 1:12:09][%emt 0:01:12]}
 19... c5 {[%clk 1:03:44][%emt 0:11:45]} 20. Qxb7 {[%clk 0:55:28][%emt
0:17:11]} 20... Rb8 {[%clk 1:03:57][%emt 0:00:18]} 21. Qf3 {[%clk
0:55:29][%emt 0:00:28]} 21... Rc8 {[%clk 0:56:37][%emt 0:07:50]} 22. d5 {[%clk
0:47:22][%emt 0:08:37]} 22... exd5 {[%clk 0:41:27][%emt 0:15:40]} 23. Re1+
{[%clk 0:47:13][%emt 0:00:38]} 23... Be7 {[%clk 0:40:47][%emt 0:01:11]} 24.
Nf5 {[%clk 0:47:14][%emt 0:00:28]} 24... Qf6 {[%clk 0:39:43][%emt 0:01:34]}
25. Nxe7 {[%clk 0:46:45][%emt 0:00:59]} 25... Kd8 {[%clk 0:34:52][%emt
0:05:21]} 26. Qxf6 {[%clk 0:47:07][%emt 0:00:09]} 26... gxf6 {[%clk
0:35:16][%emt 0:00:06]} 27. Nxc8 {[%clk 0:47:31][%emt 0:00:04]} 27... Kxc8
{[%clk 0:35:42][%emt 0:00:06]} 28. Bd2 {[%clk 0:47:11][%emt 0:00:49]} 28...
Nd3 {[%clk 0:35:10][%emt 0:01:02]} 29. cxd5 {[%clk 0:47:31][%emt 0:00:10]}
29... Nxe1 {[%clk 0:35:15][%emt 0:00:26]} 30. Rxe1 {[%clk 0:47:54][%emt
0:00:07]} 30... c4 {[%clk 0:35:24][%emt 0:00:20]} 31. Bxc4 {[%clk
0:48:17][%emt 0:00:08]} 31... Nxc4 {[%clk 0:35:25][%emt 0:00:28]} 32. Rc1
{[%clk 0:48:46]} 32... Kd7 {[%clk 0:35:29][%emt 0:00:26]} 33. Rxc4 {[%clk
0:49:15][%emt 0:00:02]} 33... Kd6 {[%clk 0:35:50][%emt 0:00:09]} 34. Rc6+
{[%clk 0:49:44][%emt 0:00:01]} 34... Kxd5 {[%clk 0:36:09][%emt 0:00:12]} 35.
Rxf6 {[%clk 0:50:11][%emt 0:00:02]} 35... Rb8 {[%clk 0:35:56][%emt 0:00:43]}
36. Rxa6 {[%clk 0:50:34][%emt 0:00:07]} 36... Rxb2 {[%clk 0:36:19][%emt
0:00:07]} 37. Bxh6 {[%clk 0:51:02][%emt 0:00:02]} 37... Rb8 {[%clk
0:35:57][%emt 0:00:52]} 38. g4 {[%clk 0:51:25][%emt 0:00:07]} 38... Rh8 {[%clk
0:36:08][%emt 0:00:19]} 39. g5 {[%clk 0:51:50][%emt 0:00:05]} 39... Ke5 {[%clk
0:36:24][%emt 0:00:13]} 40. Bg7+ {[%clk 0:52:18][%emt 0:00:02]} 40... Kf5
{[%clk 0:36:47][%emt 0:00:08]} 41. Bxh8 {[%clk 0:52:46][%emt 0:00:02]} 41...
Kxg5 {[%clk 0:37:06][%emt 0:00:11]} 42. Rf6 {[%clk 0:53:11][%emt 0:00:04]}
42... Kxh5 {[%clk 0:37:25][%emt 0:00:11]} 43. a4 {[%clk 0:53:39][%emt 0:00:03]}
 43... Kg5 {[%clk 0:37:40][%emt 0:00:14]} 44. a5 {[%clk 0:54:07][%emt 0:00:02]}
 44... Kh5 {[%emt 0:00:14]} 45. a6 {[%clk 0:54:35]} 45... Kg5 {[%clk
0:38:19][%emt 0:00:09]} 46. a7 {[%clk 0:55:02][%emt 0:00:03]} 46... Kh5 {[%clk
0:38:46][%emt 0:00:03]} 47. a8=Q {[%clk 0:55:29][%emt 0:00:04]} 47... Kg5
{[%clk 0:39:08][%emt 0:00:07]} 48. Qd5+ {[%clk 0:55:51][%emt 0:00:08]} 48...
Kg4 {[%clk 0:39:26][%emt 0:00:11]} 49. Qf5+ {[%clk 0:56:17][%emt 0:00:05]}
49... Kh4 {[%clk 0:39:47][%emt 0:00:08]} 50. Rh6# {[%clk 0:56:44][%emt
0:00:03]} 1-0

[White "PETITGRAND, Leo"]
[Black "ANZA-HAFSA, Salim"]
[WhiteElo "1644"]
[BlackElo "1823"]
[Result "1-0"]
[Date "2026.03.04"]

[Event "Chpt Reg Jeunes Occitanie 2026 - Espalion"]
[Site "Espalion, France"]
[Round "2.15"]
[ECO "?"]
[Annotator "?"]
[TimeControl "1h30 + 30sec/cp"]

1. e4 {[%clk 1:30:58]} 1... e5 {[%clk 1:30:58][%emt 0:00:31]} 2. Nf3 {[%clk
1:31:22][%emt 0:00:07]} 2... Nf6 {[%clk 1:31:23][%emt 0:00:05]} 3. Nxe5 {[%clk
1:31:47][%emt 0:00:05]} 3... d6 {[%clk 1:31:47][%emt 0:00:06]} 4. Nf3 {[%emt
0:00:39]} 4... Nxe4 {[%clk 1:31:40][%emt 0:00:05]} 5. d4 {[%clk 1:32:36][%emt
0:00:05]} 5... d5 {[%clk 1:32:04][%emt 0:00:06]} 6. Bd3 {[%clk 1:32:26][%emt
0:00:40]} 6... Bg4 {[%clk 1:32:28][%emt 0:00:06]} 7. O-O {[%clk 1:31:01][%emt
0:01:54]} 7... Be7 {[%clk 1:32:21][%emt 0:00:37]} 8. Re1 {[%clk 1:29:51][%emt
0:01:40]} 8... Nf6 {[%clk 1:32:28][%emt 0:00:23]} 9. h3 {[%clk 1:26:25][%emt
0:03:56]} 9... Bh5 {[%clk 1:30:16][%emt 0:02:42]} 10. Bf4 {[%clk 1:26:36][%emt
0:00:19]} 10... O-O {[%clk 1:29:33][%emt 0:01:11]} 11. Nbd2 {[%clk
1:26:24][%emt 0:00:44]} 11... Nc6 {[%clk 1:16:09][%emt 0:13:54]} 12. c3 {[%clk
1:23:54][%emt 0:03:02]} 12... a6 {[%clk 1:11:44][%emt 0:04:55]} 13. Nf1 {[%clk
1:18:58][%emt 0:05:25]} 13... Bg6 {[%clk 1:08:05][%emt 0:04:09]} 14. Bxg6
{[%clk 1:18:27][%emt 0:01:01]} 14... fxg6 {[%clk 1:07:30][%emt 0:01:04]} 15.
Ng5 {[%clk 1:18:39][%emt 0:00:19]} 15... Qd7 {[%clk 0:57:41][%emt 0:10:19]}
16. Ne6 {[%clk 1:15:37][%emt 0:03:32]} 16... Rfc8 {[%clk 0:54:49][%emt
0:03:23]} 17. Ng3 {[%clk 1:07:02][%emt 0:09:05]} 17... Bd6 {[%clk
0:49:31][%emt 0:05:47]} 18. Bxd6 {[%clk 1:01:44][%emt 0:05:48]} 18... Qxd6
{[%clk 0:43:05][%emt 0:06:56]} 19. Nc5 {[%clk 0:59:01][%emt 0:03:13]} 19...
Nd8 {[%clk 0:40:18][%emt 0:03:17]} 20. Qb3 {[%clk 0:55:56][%emt 0:03:35]}
20... Kf8 {[%clk 0:32:07][%emt 0:08:42]} 21. Qa3 {[%clk 0:43:00][%emt 0:13:26]}
 21... Kf7 {[%clk 0:26:58][%emt 0:05:38]} 22. Qb3 {[%clk 0:41:24][%emt
0:02:07]} 22... Kf8 {[%clk 0:26:50][%emt 0:00:37]} 23. Qa3 {[%clk
0:41:17][%emt 0:00:37]} 23... Kg8 {[%clk 0:25:12][%emt 0:02:08]} 24. Qb3
{[%clk 0:41:41][%emt 0:00:06]} 24... Kh8 {[%clk 0:21:02][%emt 0:04:40]} 25.
Re3 {[%clk 0:36:52][%emt 0:05:19]} 25... b6 {[%clk 0:18:17][%emt 0:03:16]} 26.
Nd3 {[%clk 0:36:20][%emt 0:01:01]} 26... Nf7 {[%clk 0:12:52][%emt 0:05:55]}
27. Rae1 {[%clk 0:34:58][%emt 0:01:52]} 27... a5 {[%clk 0:10:00][%emt 0:03:22]}
 28. Ne5 {[%clk 0:33:35][%emt 0:01:53]} 28... Kg8 {[%clk 0:09:07][%emt
0:01:24]} 29. Nf1 {[%clk 0:26:44][%emt 0:07:20]} 29... Re8 {[%clk
0:06:58][%emt 0:02:39]} 30. Nh2 {[%clk 0:25:33][%emt 0:01:42]} 30... Re7
{[%clk 0:04:13][%emt 0:03:15]} 31. Nxf7 {[%clk 0:25:16][%emt 0:00:46]} 31...
Rxf7 {[%clk 0:04:16][%emt 0:00:27]} 32. Nf3 {[%clk 0:23:28][%emt 0:02:18]}
32... Ne4 {[%clk 0:03:07][%emt 0:01:39]} 33. Ne5 {[%clk 0:21:36][%emt 0:02:22]}
 33... Re7 {[%clk 0:01:57][%emt 0:01:40]} 34. Rxe4 {[%clk 0:21:50][%emt
0:00:16]} 34... a4 {[%clk 0:01:43][%emt 0:00:45]} 35. Qb5 {[%clk 0:19:52][%emt
0:02:27]} 35... dxe4 {[%clk 0:01:46][%emt 0:00:27]} 36. Rxe4 {[%clk
0:17:59][%emt 0:02:23]} 36... Ra5 {[%clk 0:01:02][%emt 0:01:14]} 37. Qe2
{[%clk 0:17:36][%emt 0:00:52]} 37... Qf6 {[%clk 0:00:51][%emt 0:00:41]} 38.
Ng4 {[%clk 0:16:02][%emt 0:02:04]} 38... Qd6 {[%clk 0:00:40][%emt 0:00:42]}
39. Rxe7 {[%clk 0:16:11][%emt 0:00:21]} 39... h5 {[%clk 0:01:06][%emt 0:00:04]}
 40. Nh2 {[%clk 0:15:40][%emt 0:01:00]} 40... Rf5 {[%clk 0:01:22][%emt
0:00:15]} 41. Qe6+ {[%clk 0:15:16][%emt 0:00:55]} 41... Qxe6 {[%clk
0:01:34][%emt 0:00:17]} 42. Rxe6 {[%clk 0:15:36][%emt 0:00:10]} 42... Kf7
{[%clk 0:02:01][%emt 0:00:03]} 43. Rc6 {[%emt 0:00:25]} 43... Rb5 {[%clk
0:02:20]} 44. Rxc7+ {[%clk 0:16:00][%emt 0:00:24]} 44... Kf6 {[%clk
0:02:48][%emt 0:00:02]} 45. Ra7 {[%clk 0:15:42][%emt 0:00:46]} 45... Rxb2
{[%clk 0:02:59][%emt 0:00:19]} 46. Rxa4 {[%clk 0:16:03][%emt 0:00:10]} 46...
Ke6 {[%clk 0:02:39][%emt 0:00:50]} 47. Nf3 {[%clk 0:15:55][%emt 0:00:38]}
47... Kd5 {[%clk 0:02:58][%emt 0:00:12]} 48. Rb4 {[%clk 0:15:56][%emt 0:00:29]}
 48... Rxa2 {[%clk 0:03:15][%emt 0:00:13]} 49. Rxb6 {[%clk 0:16:17][%emt
0:00:09]} 49... Rc2 {[%clk 0:03:26][%emt 0:00:17]} 50. Rxg6 {[%emt 0:00:21]}
50... Rxc3 {[%clk 0:03:53]} 51. Rxg7 {[%clk 0:16:49][%emt 0:00:12]} 51... Ke6
{[%clk 0:03:59][%emt 0:00:24]} 52. Rh7 {[%clk 0:17:01][%emt 0:00:18]} 52...
Kf6 {[%clk 0:04:24][%emt 0:00:06]} 53. Rxh5 {[%clk 0:17:23][%emt 0:00:08]}
53... Kg6 {[%clk 0:04:45][%emt 0:00:08]} 54. Rc5 {[%clk 0:17:46][%emt 0:00:07]}
 54... Rd3 {[%clk 0:05:03][%emt 0:00:13]} 55. Ne5+ {[%clk 0:18:11][%emt
0:00:05]} 55... Kg7 {[%clk 0:05:22][%emt 0:00:11]} 56. Nxd3 {[%clk
0:18:33][%emt 0:00:07]} 56... Kh8 {[%clk 0:05:14][%emt 0:00:38]} 57. Rg5
{[%clk 0:18:53][%emt 0:00:10]} 57... Kh7 {[%clk 0:05:37][%emt 0:00:07]} 58. d5
{[%emt 0:00:22]} 58... Kh8 {[%clk 0:05:55]} 59. d6 {[%clk 0:19:37][%emt
0:00:06]} 59... Kh7 {[%clk 0:06:21][%emt 0:00:03]} 60. d7 {[%clk 0:19:58][%emt
0:00:08]} 60... Kh6 {[%clk 0:06:48][%emt 0:00:03]} 61. d8=Q {[%clk
0:20:11][%emt 0:00:17]} 61... Kh7 {[%clk 0:07:15][%emt 0:00:04]} 62. Qg8+
{[%clk 0:20:32][%emt 0:00:19]} 62... Kh6 {[%clk 0:07:34][%emt 0:00:12]} 63.
Qg6# {[%clk 0:20:58][%emt 0:00:04]} 1-0

[White "BAUER, Pierre"]
[Black "MAURY, Tom"]
[WhiteElo "2174"]
[BlackElo "1701"]
[Result "1-0"]
[Date "2026.03.05"]